[Event "Titled Tuesday Blitz August 31 2021"]
[White "Gutenev, Alexander"]
[Black "ketster"]
[WhiteFideId "4195540"]
[WhiteElo "2432"]
[BlackElo "2559"]
[Result "0-1"]
[Round "10"]
[TimeControl "180+1"]
[Date "2021.08.31"]
[WhiteClock "0:00:20"]
[BlackClock "0:00:28"]

1. b3 {[%clk 0:03:00]}  e5 {[%clk 0:02:59]} 2. Bb2 {[%clk 0:03:01]}  Nc6 {[%clk 0:02:59]} 3. e3 {[%clk 0:03:00]}  Nf6 {[%clk 0:02:59]} 4. Nf3 {[%clk 0:03:00]}  e4 {[%clk 0:02:58]} 5. Ne5 {[%clk 0:02:59]}  Nxe5 {[%clk 0:02:56]} 6. Bxe5 {[%clk 0:03:00]}  Be7 {[%clk 0:02:55]} 7. Be2 {[%clk 0:02:56]}  d5 {[%clk 0:02:52]} 8. O-O {[%clk 0:02:53]}  O-O {[%clk 0:02:50]} 9. d3 {[%clk 0:02:47]}  Bf5 {[%clk 0:02:45]} 10. dxe4 {[%clk 0:02:44]}  Nxe4 {[%clk 0:02:45]} 11. Nc3 {[%clk 0:02:40]}  c6 {[%clk 0:02:40]} 12. Qd4 {[%clk 0:02:28]}  f6 {[%clk 0:02:34]} 13. Bf4 {[%clk 0:02:11]}  Bc5 {[%clk 0:02:27]} 14. Qd3 {[%clk 0:02:11]}  Ng3 {[%clk 0:02:22]} 15. Qd1 {[%clk 0:02:10]}  Nxf1 {[%clk 0:02:20]} 16. Bxf1 {[%clk 0:02:10]}  Qe7 {[%clk 0:02:18]} 17. Ne2 {[%clk 0:02:09]}  Rad8 {[%clk 0:02:15]} 18. Nd4 {[%clk 0:02:07]}  Bc8 {[%clk 0:02:12]} 19. Bd3 {[%clk 0:02:05]}  Bd6 {[%clk 0:02:11]} 20. Bxd6 {[%clk 0:01:53]}  Rxd6 {[%clk 0:02:10]} 21. b4 {[%clk 0:01:49]}  a6 {[%clk 0:02:09]} 22. a4 {[%clk 0:01:48]}  f5 {[%clk 0:02:04]} 23. g3 {[%clk 0:01:47]}  Rh6 {[%clk 0:02:02]} 24. Qf3 {[%clk 0:01:45]}  Qxb4 {[%clk 0:01:57]} 25. Qf4 {[%clk 0:01:45]}  c5 {[%clk 0:01:52]} 26. Nf3 {[%clk 0:01:22]}  Qxf4 {[%clk 0:01:51]} 27. gxf4 {[%clk 0:01:23]}  Rb6 {[%clk 0:01:46]} 28. a5 {[%clk 0:01:21]}  Rb2 {[%clk 0:01:45]} 29. c4 {[%clk 0:01:15]}  Be6 {[%clk 0:01:16]} 30. cxd5 {[%clk 0:01:15]}  Bxd5 {[%clk 0:01:15]} 31. Ne5 {[%clk 0:01:15]}  g6 {[%clk 0:01:07]} 32. h4 {[%clk 0:01:12]}  Rc8 {[%clk 0:01:06]} 33. Rc1 {[%clk 0:01:12]}  c4 {[%clk 0:01:03]} 34. Nd7 {[%clk 0:01:00]}  Rc6 {[%clk 0:00:55]} 35. Bf1 {[%clk 0:00:55]}  c3 {[%clk 0:00:54]} 36. Nb6 {[%clk 0:00:48]}  Bb3 {[%clk 0:00:49]} 37. Bg2 {[%clk 0:00:45]}  c2 {[%clk 0:00:46]} 38. Kh2 {[%clk 0:00:31]}  Rb1 {[%clk 0:00:39]} 39. Rxc2 {[%clk 0:00:31]}  Rxc2 {[%clk 0:00:38]} 40. Kg3 {[%clk 0:00:31]}  Rbb2 {[%clk 0:00:36]} 41. Bxb7 {[%clk 0:00:28]}  Bc4 {[%clk 0:00:34]} 42. Bc8 {[%clk 0:00:21]}  Bb5 {[%clk 0:00:34]} 43. Be6+ {[%clk 0:00:21]}  Kg7 {[%clk 0:00:34]} 44. Nd5 {[%clk 0:00:18]}  Rxf2 {[%clk 0:00:34]} 45. Nc3 {[%clk 0:00:17]}  Rg2+ {[%clk 0:00:34]} 46. Kh3 {[%clk 0:00:17]}  Rh2+ {[%clk 0:00:33]} 47. Kg3 {[%clk 0:00:17]}  Rbg2+ {[%clk 0:00:33]} 48. Kf3 {[%clk 0:00:18]}  Bc6+ {[%clk 0:00:33]} 49. e4 {[%clk 0:00:18]}  fxe4+ {[%clk 0:00:32]} 50. Ke3 {[%clk 0:00:18]}  Rg3+ {[%clk 0:00:30]} 51. Kd4 {[%clk 0:00:19]}  Rd3+ {[%clk 0:00:28]} 52. Kc4 {[%clk 0:00:19]}  Rc2 {[%clk 0:00:28]} 53. Kc5 {[%clk 0:00:19]}  Rdxc3+ {[%clk 0:00:28]} 54. Kb6 {[%clk 0:00:20]}  e3 {[%clk 0:00:29]} 55. f5 {[%clk 0:00:20]}  gxf5 {[%clk 0:00:28]} 56. h5 {[%clk 0:00:20]}  e2 {[%clk 0:00:29]} 57. Bxf5 {[%clk 0:00:20]}  e1=Q {[%clk 0:00:29]} 58. h6+ {[%clk 0:00:21]}  Kf6 {[%clk 0:00:29]} 59. Ka7 {[%clk 0:00:22]}  Qe3+ {[%clk 0:00:29]} 60. Kb8 {[%clk 0:00:21]}  Bb5 {[%clk 0:00:28]} 61. Bxh7 {[%clk 0:00:19]}  Rc8+ {[%clk 0:00:28]} 62. Kb7 {[%clk 0:00:20]}  R2c7# {[%clk 0:00:28]} 0-1


[Site "https://www.chess.com"]

[Event "Titled Tuesday Blitz August 31 2021"]
[White "Holt, Conrad"]
[Black "Dobrov, Vladimir"]
[WhiteFideId "2034387"]
[BlackFideId "4136594"]
[WhiteElo "2586"]
[BlackElo "2614"]
[Result "1-0"]
[Round "10"]
[TimeControl "180+1"]
[Date "2021.08.31"]
[WhiteClock "0:01:10"]
[BlackClock "0:00:12"]

1. d4 {[%clk 0:03:00]}  Nf6 {[%clk 0:02:59]} 2. c4 {[%clk 0:03:00]}  e6 {[%clk 0:02:59]} 3. Nc3 {[%clk 0:03:01]}  Bb4 {[%clk 0:03:00]} 4. Qc2 {[%clk 0:03:01]}  d5 {[%clk 0:03:00]} 5. cxd5 {[%clk 0:03:01]}  Qxd5 {[%clk 0:03:00]} 6. Nf3 {[%clk 0:03:02]}  Qf5 {[%clk 0:03:00]} 7. Qxf5 {[%clk 0:03:02]}  exf5 {[%clk 0:02:59]} 8. Bd2 {[%clk 0:03:02]}  c6 {[%clk 0:02:58]} 9. e3 {[%clk 0:03:02]}  h6 {[%clk 0:02:55]} 10. Bd3 {[%clk 0:03:02]}  Be6 {[%clk 0:02:55]} 11. Ke2 {[%clk 0:02:59]}  Nbd7 {[%clk 0:02:54]} 12. Nb5 {[%clk 0:02:44]}  Bxd2 {[%clk 0:02:47]} 13. Nc7+ {[%clk 0:02:43]}  Ke7 {[%clk 0:02:48]} 14. Kxd2 {[%clk 0:02:34]}  Rac8 {[%clk 0:02:46]} 15. Nxe6 {[%clk 0:02:34]}  fxe6 {[%clk 0:02:42]} 16. b4 {[%clk 0:02:30]}  g5 {[%clk 0:02:40]} 17. Rhc1 {[%clk 0:02:24]}  Rhf8 {[%clk 0:02:35]} 18. a4 {[%clk 0:02:21]}  Ne4+ {[%clk 0:02:33]} 19. Ke2 {[%clk 0:02:18]}  Nd6 {[%clk 0:02:33]} 20. Ne5 {[%clk 0:02:14]}  Nxe5 {[%clk 0:02:13]} 21. dxe5 {[%clk 0:02:15]}  Nf7 {[%clk 0:02:14]} 22. f4 {[%clk 0:02:13]}  Rg8 {[%clk 0:02:14]} 23. Kf2 {[%clk 0:01:50]}  h5 {[%clk 0:02:04]} 24. b5 {[%clk 0:01:38]}  c5 {[%clk 0:01:59]} 25. a5 {[%clk 0:01:34]}  h4 {[%clk 0:01:50]} 26. b6 {[%clk 0:01:28]}  gxf4 {[%clk 0:01:40]} 27. exf4 {[%clk 0:01:20]}  Rg4 {[%clk 0:01:21]} 28. g3 {[%clk 0:01:19]}  axb6 {[%clk 0:00:54]} 29. axb6 {[%clk 0:01:15]}  hxg3+ {[%clk 0:00:47]} 30. hxg3 {[%clk 0:01:15]}  Rcg8 {[%clk 0:00:19]} 31. Rxc5 {[%clk 0:01:11]}  Rxg3 {[%clk 0:00:12]} 32. Rc7+ {[%clk 0:01:10]} 1-0


[Site "https://www.chess.com"]

[Event "Titled Tuesday Blitz August 31 2021"]
[White "Hryshchenko, Kamila"]
[Black "Girinath, P.D.S."]
[WhiteFideId "14147491"]
[BlackFideId "5000572"]
[WhiteElo "1936"]
[BlackElo "2333"]
[Result "0-1"]
[Round "10"]
[TimeControl "180+1"]
[Date "2021.08.31"]
[WhiteClock "0:00:02"]
[BlackClock "0:00:06"]

1. e4 {[%clk 0:03:00]}  e6 {[%clk 0:02:59]} 2. d4 {[%clk 0:03:00]}  d5 {[%clk 0:02:59]} 3. Nc3 {[%clk 0:03:00]}  Bb4 {[%clk 0:02:58]} 4. Bd2 {[%clk 0:02:58]}  Bxc3 {[%clk 0:02:52]} 5. Bxc3 {[%clk 0:02:59]}  dxe4 {[%clk 0:02:53]} 6. Qg4 {[%clk 0:02:59]}  Nf6 {[%clk 0:02:53]} 7. Qxg7 {[%clk 0:02:58]}  Rg8 {[%clk 0:02:53]} 8. Qh6 {[%clk 0:02:56]}  Rg6 {[%clk 0:02:53]} 9. Qe3 {[%clk 0:02:55]}  Nc6 {[%clk 0:02:52]} 10. O-O-O {[%clk 0:02:52]}  Ne7 {[%clk 0:02:50]} 11. Be1 {[%clk 0:02:46]}  Bd7 {[%clk 0:02:29]} 12. h3 {[%clk 0:02:41]}  Bc6 {[%clk 0:02:24]} 13. Ne2 {[%clk 0:02:36]}  Qd6 {[%clk 0:02:17]} 14. c4 {[%clk 0:02:20]}  b6 {[%clk 0:01:56]} 15. g4 {[%clk 0:02:17]}  O-O-O {[%clk 0:01:51]} 16. Nf4 {[%clk 0:02:05]}  Rgg8 {[%clk 0:01:44]} 17. Be2 {[%clk 0:02:03]}  h5 {[%clk 0:01:36]} 18. Rg1 {[%clk 0:02:01]}  hxg4 {[%clk 0:01:35]} 19. hxg4 {[%clk 0:02:02]}  Kb8 {[%clk 0:01:32]} 20. Bc3 {[%clk 0:01:59]}  Bb7 {[%clk 0:01:15]} 21. b4 {[%clk 0:01:53]}  Ng6 {[%clk 0:01:04]} 22. Nxg6 {[%clk 0:01:44]}  Rxg6 {[%clk 0:01:05]} 23. a4 {[%clk 0:01:27]}  Rdg8 {[%clk 0:01:03]} 24. d5 {[%clk 0:01:13]}  exd5 {[%clk 0:00:58]} 25. c5 {[%clk 0:01:13]}  Qe6 {[%clk 0:00:46]} 26. g5 {[%clk 0:01:07]}  d4 {[%clk 0:00:37]} 27. Qxd4 {[%clk 0:01:00]}  Nd5 {[%clk 0:00:37]} 28. Bc4 {[%clk 0:00:56]}  Nxc3 {[%clk 0:00:35]} 29. Qxc3 {[%clk 0:00:52]}  Qf5 {[%clk 0:00:34]} 30. a5 {[%clk 0:00:31]}  bxc5 {[%clk 0:00:31]} 31. a6 {[%clk 0:00:30]}  Bxa6 {[%clk 0:00:27]} 32. b5 {[%clk 0:00:19]}  Bb7 {[%clk 0:00:25]} 33. Qa3 {[%clk 0:00:13]}  Rxg5 {[%clk 0:00:11]} 34. Rge1 {[%clk 0:00:14]}  Rg2 {[%clk 0:00:09]} 35. Re2 {[%clk 0:00:11]}  Rxf2 {[%clk 0:00:08]} 36. Rxf2 {[%clk 0:00:07]}  Qxf2 {[%clk 0:00:09]} 37. Qc3 {[%clk 0:00:07]}  Qf4+ {[%clk 0:00:08]} 38. Kb2 {[%clk 0:00:05]}  e3 {[%clk 0:00:08]} 39. Ra1 {[%clk 0:00:04]}  Rg2+ {[%clk 0:00:07]} 40. Kb3 {[%clk 0:00:03]}  Qd4 {[%clk 0:00:07]} 41. Qxd4 {[%clk 0:00:02]}  cxd4 {[%clk 0:00:08]} 42. Rd1 {[%clk 0:00:02]}  e2 {[%clk 0:00:07]} 43. Re1 {[%clk 0:00:02]}  Bf3 {[%clk 0:00:06]} 44. Bd3 {[%clk 0:00:02]}  f5 {[%clk 0:00:05]} 45. Kc4 {[%clk 0:00:03]}  f4 {[%clk 0:00:05]} 46. Kxd4 {[%clk 0:00:03]}  Bg4 {[%clk 0:00:05]} 47. Be4 {[%clk 0:00:03]}  f3 {[%clk 0:00:05]} 48. Ke3 {[%clk 0:00:02]}  Rg3 {[%clk 0:00:05]} 49. Kf2 {[%clk 0:00:02]}  Rh3 {[%clk 0:00:06]} 0-1


[Site "https://www.chess.com"]

[Event "Titled Tuesday Blitz August 31 2021"]
[White "Indjic, Aleksandar"]
[Black "Bernadskiy, Vitaliy"]
[WhiteFideId "911925"]
[BlackFideId "14100371"]
[WhiteElo "2643"]
[BlackElo "2510"]
[Result "0-1"]
[Round "10"]
[TimeControl "180+1"]
[Date "2021.08.31"]
[WhiteClock "0:00:07"]
[BlackClock "0:00:07"]

1. d4 {[%clk 0:03:00]}  d6 {[%clk 0:02:58]} 2. Nf3 {[%clk 0:02:59]}  g6 {[%clk 0:02:58]} 3. e4 {[%clk 0:02:58]}  Nf6 {[%clk 0:02:57]} 4. Nc3 {[%clk 0:02:59]}  Bg7 {[%clk 0:02:57]} 5. Be3 {[%clk 0:02:58]}  O-O {[%clk 0:02:57]} 6. Qd2 {[%clk 0:02:57]}  c6 {[%clk 0:02:47]} 7. Bh6 {[%clk 0:02:56]}  Bg4 {[%clk 0:02:46]} 8. h4 {[%clk 0:02:38]}  Bxf3 {[%clk 0:02:38]} 9. gxf3 {[%clk 0:02:39]}  e5 {[%clk 0:02:39]} 10. Bxg7 {[%clk 0:02:35]}  Kxg7 {[%clk 0:02:38]} 11. O-O-O {[%clk 0:02:36]}  Qe7 {[%clk 0:01:58]} 12. f4 {[%clk 0:02:35]}  Nbd7 {[%clk 0:01:49]} 13. fxe5 {[%clk 0:02:20]}  dxe5 {[%clk 0:01:50]} 14. f4 {[%clk 0:02:19]}  exf4 {[%clk 0:01:35]} 15. Qxf4 {[%clk 0:01:10]}  c5 {[%clk 0:01:35]} 16. d5 {[%clk 0:01:08]}  Qe5 {[%clk 0:01:35]} 17. Qf3 {[%clk 0:01:07]}  a6 {[%clk 0:01:18]} 18. d6 {[%clk 0:01:06]}  Rae8 {[%clk 0:01:13]} 19. Bh3 {[%clk 0:01:04]}  b5 {[%clk 0:01:06]} 20. Rhe1 {[%clk 0:00:56]}  Rd8 {[%clk 0:00:43]} 21. Nd5 {[%clk 0:00:22]}  Qxd6 {[%clk 0:00:42]} 22. h5 {[%clk 0:00:14]}  Qe5 {[%clk 0:00:33]} 23. h6+ {[%clk 0:00:12]}  Kxh6 {[%clk 0:00:26]} 24. Bxd7 {[%clk 0:00:08]}  Nxd7 {[%clk 0:00:27]} 25. Rh1+ {[%clk 0:00:06]}  Kg7 {[%clk 0:00:27]} 26. Rdg1 {[%clk 0:00:06]}  Nf6 {[%clk 0:00:25]} 27. Qh3 {[%clk 0:00:05]}  h5 {[%clk 0:00:17]} 28. Nxf6 {[%clk 0:00:05]}  Qxf6 {[%clk 0:00:17]} 29. Kb1 {[%clk 0:00:06]}  Qe5 {[%clk 0:00:17]} 30. Qe3 {[%clk 0:00:04]}  Rd4 {[%clk 0:00:15]} 31. Qf2 {[%clk 0:00:04]}  Rxe4 {[%clk 0:00:14]} 32. a3 {[%clk 0:00:04]}  Re8 {[%clk 0:00:15]} 33. Qf3 {[%clk 0:00:04]}  Rf4 {[%clk 0:00:13]} 34. Qc6 {[%clk 0:00:04]}  Qf5 {[%clk 0:00:12]} 35. Qxa6 {[%clk 0:00:02]}  Re2 {[%clk 0:00:10]} 36. Rc1 {[%clk 0:00:02]}  Rff2 {[%clk 0:00:09]} 37. Qxb5 {[%clk 0:00:02]}  Rxc2 {[%clk 0:00:09]} 38. Rxc2 {[%clk 0:00:03]}  Qxc2+ {[%clk 0:00:09]} 39. Ka1 {[%clk 0:00:04]}  Qf5 {[%clk 0:00:07]} 40. Qc4 {[%clk 0:00:03]}  Rf3 {[%clk 0:00:05]} 41. Qb5 {[%clk 0:00:03]}  h4 {[%clk 0:00:04]} 42. Rc1 {[%clk 0:00:01]}  h3 {[%clk 0:00:04]} 43. Rxc5 {[%clk 0:00:01]}  Rf1+ {[%clk 0:00:04]} 44. Ka2 {[%clk 0:00:01]}  Qb1+ {[%clk 0:00:04]} 45. Kb3 {[%clk 0:00:02]}  Rf3+ {[%clk 0:00:05]} 46. Ka4 {[%clk 0:00:02]}  Qe4+ {[%clk 0:00:05]} 47. Ka5 {[%clk 0:00:02]}  h2 {[%clk 0:00:04]} 48. Qb4 {[%clk 0:00:01]}  Qxb4+ {[%clk 0:00:04]} 49. Kxb4 {[%clk 0:00:02]}  h1=Q {[%clk 0:00:05]} 50. Rc4 {[%clk 0:00:03]}  Qe1+ {[%clk 0:00:05]} 51. Ka4 {[%clk 0:00:03]}  Rf2 {[%clk 0:00:06]} 52. b3 {[%clk 0:00:03]}  Qd1 {[%clk 0:00:06]} 53. Rc5 {[%clk 0:00:04]}  Rf3 {[%clk 0:00:07]} 54. Ka5 {[%clk 0:00:05]}  Qxb3 {[%clk 0:00:07]} 55. a4 {[%clk 0:00:05]}  Qa3 {[%clk 0:00:07]} 56. Rb5 {[%clk 0:00:06]}  Rf4 {[%clk 0:00:07]} 57. Kb6 {[%clk 0:00:07]}  Qxa4 {[%clk 0:00:07]} 0-1


[Site "https://www.chess.com"]

[Event "Titled Tuesday Blitz August 31 2021"]
[White "Jarovinsky, Alexey"]
[Black "Stribuk, Artiom"]
[WhiteFideId "14115131"]
[BlackFideId "13515659"]
[WhiteElo "2446"]
[BlackElo "2224"]
[Result "1-0"]
[Round "10"]
[TimeControl "180+1"]
[Date "2021.08.31"]
[WhiteClock "0:01:52"]
[BlackClock "0:00:28"]

1. Nc3 {[%clk 0:03:00]}  c5 {[%clk 0:02:54]} 2. e4 {[%clk 0:02:59]}  Nc6 {[%clk 0:02:49]} 3. Bb5 {[%clk 0:02:58]}  Nd4 {[%clk 0:02:48]} 4. Nf3 {[%clk 0:02:58]}  Nxb5 {[%clk 0:02:48]} 5. Nxb5 {[%clk 0:02:59]}  d6 {[%clk 0:02:45]} 6. d4 {[%clk 0:02:49]}  Nf6 {[%clk 0:02:45]} 7. O-O {[%clk 0:02:30]}  Nxe4 {[%clk 0:02:42]} 8. Re1 {[%clk 0:02:28]}  d5 {[%clk 0:02:42]} 9. c4 {[%clk 0:02:24]}  a6 {[%clk 0:02:35]} 10. cxd5 {[%clk 0:02:16]}  axb5 {[%clk 0:02:33]} 11. Rxe4 {[%clk 0:02:16]}  Qxd5 {[%clk 0:02:32]} 12. Re5 {[%clk 0:02:16]}  Qd8 {[%clk 0:02:01]} 13. Rxc5 {[%clk 0:02:15]}  Bd7 {[%clk 0:02:01]} 14. Ne5 {[%clk 0:02:14]}  g6 {[%clk 0:00:43]} 15. Rd5 {[%clk 0:02:06]}  Bg7 {[%clk 0:00:27]} 16. Rxd7 {[%clk 0:01:57]}  Qxd7 {[%clk 0:00:27]} 17. Nxd7 {[%clk 0:01:57]}  Kxd7 {[%clk 0:00:28]} 18. Qf3 {[%clk 0:01:52]} 1-0


[Site "https://www.chess.com"]

[Event "Titled Tuesday Blitz August 31 2021"]
[White "Jobava, Baadur"]
[Black "Andreikin, Dmitry"]
[WhiteFideId "13601520"]
[BlackFideId "4158814"]
[WhiteElo "2748"]
[BlackElo "2782"]
[Result "1-0"]
[Round "10"]
[TimeControl "180+1"]
[Date "2021.08.31"]
[WhiteClock "0:00:40"]
[BlackClock "0:00:13"]

1. e4 {[%clk 0:03:00]}  c5 {[%clk 0:03:00]} 2. c3 {[%clk 0:03:01]}  Nf6 {[%clk 0:02:59]} 3. e5 {[%clk 0:03:00]}  Nd5 {[%clk 0:02:59]} 4. d4 {[%clk 0:02:54]}  cxd4 {[%clk 0:02:59]} 5. Qxd4 {[%clk 0:02:55]}  e6 {[%clk 0:02:58]} 6. Bc4 {[%clk 0:02:55]}  Nc6 {[%clk 0:02:58]} 7. Qe4 {[%clk 0:02:55]}  d6 {[%clk 0:02:49]} 8. exd6 {[%clk 0:02:56]}  Nf6 {[%clk 0:02:46]} 9. Qe2 {[%clk 0:02:55]}  Bxd6 {[%clk 0:02:45]} 10. Nf3 {[%clk 0:02:55]}  Qc7 {[%clk 0:02:41]} 11. Bg5 {[%clk 0:02:49]}  b6 {[%clk 0:02:36]} 12. Nbd2 {[%clk 0:02:48]}  Bb7 {[%clk 0:02:34]} 13. O-O-O {[%clk 0:02:47]}  O-O {[%clk 0:02:26]} 14. Kb1 {[%clk 0:02:42]}  Be7 {[%clk 0:02:24]} 15. h4 {[%clk 0:02:40]}  Rab8 {[%clk 0:02:14]} 16. Bd3 {[%clk 0:02:38]}  b5 {[%clk 0:02:13]} 17. Ne4 {[%clk 0:02:36]}  Nd5 {[%clk 0:02:10]} 18. g3 {[%clk 0:02:31]}  Ba8 {[%clk 0:02:02]} 19. Ka1 {[%clk 0:02:27]}  Qa5 {[%clk 0:01:57]} 20. Bxe7 {[%clk 0:02:24]}  Ncxe7 {[%clk 0:01:52]} 21. Neg5 {[%clk 0:02:19]}  h6 {[%clk 0:01:28]} 22. Rc1 {[%clk 0:01:38]}  b4 {[%clk 0:01:12]} 23. c4 {[%clk 0:01:37]}  b3 {[%clk 0:01:12]} 24. a3 {[%clk 0:01:36]}  Nb4 {[%clk 0:01:13]} 25. Bh7+ {[%clk 0:01:26]}  Kh8 {[%clk 0:01:13]} 26. Be4 {[%clk 0:01:18]}  Bxe4 {[%clk 0:00:45]} 27. Qxe4 {[%clk 0:01:18]}  Nf5 {[%clk 0:00:45]} 28. Ne5 {[%clk 0:00:42]}  Nc2+ {[%clk 0:00:36]} 29. Rxc2 {[%clk 0:00:41]}  bxc2 {[%clk 0:00:36]} 30. Nexf7+ {[%clk 0:00:41]}  Kg8 {[%clk 0:00:19]} 31. Qxe6 {[%clk 0:00:40]}  Qb6 {[%clk 0:00:15]} 32. Nxh6+ {[%clk 0:00:38]}  Kh8 {[%clk 0:00:14]} 33. Qg8+ {[%clk 0:00:39]}  Rxg8 {[%clk 0:00:13]} 34. Nhf7# {[%clk 0:00:40]} 1-0


[Site "https://www.chess.com"]

[Event "Titled Tuesday Blitz August 31 2021"]
[White "Korsunsky, Yuri"]
[Black "Pavlovic, Dejan S"]
[WhiteFideId "14102722"]
[BlackFideId "928399"]
[WhiteElo "2441"]
[BlackElo "2338"]
[Result "1-0"]
[Round "10"]
[TimeControl "180+1"]
[Date "2021.08.31"]
[WhiteClock "0:00:22"]
[BlackClock "0:00:27"]

1. e4 {[%clk 0:02:09]}  c5 {[%clk 0:02:56]} 2. c3 {[%clk 0:02:09]}  d5 {[%clk 0:02:49]} 3. exd5 {[%clk 0:02:08]}  Qxd5 {[%clk 0:02:50]} 4. d4 {[%clk 0:02:07]}  Nf6 {[%clk 0:02:51]} 5. Nf3 {[%clk 0:02:07]}  Bg4 {[%clk 0:02:51]} 6. Be2 {[%clk 0:02:08]}  e6 {[%clk 0:02:51]} 7. O-O {[%clk 0:02:08]}  Be7 {[%clk 0:02:51]} 8. Be3 {[%clk 0:02:08]}  cxd4 {[%clk 0:02:51]} 9. cxd4 {[%clk 0:02:09]}  O-O {[%clk 0:02:50]} 10. Nc3 {[%clk 0:02:09]}  Qd6 {[%clk 0:02:51]} 11. h3 {[%clk 0:02:03]}  Bh5 {[%clk 0:02:44]} 12. Nb5 {[%clk 0:01:50]}  Qd8 {[%clk 0:02:34]} 13. Ne5 {[%clk 0:01:47]}  Bxe2 {[%clk 0:02:32]} 14. Qxe2 {[%clk 0:01:48]}  a6 {[%clk 0:02:31]} 15. Nc3 {[%clk 0:01:45]}  Nbd7 {[%clk 0:02:27]} 16. Qf3 {[%clk 0:01:42]}  Rb8 {[%clk 0:01:59]} 17. Bf4 {[%clk 0:01:19]}  Nxe5 {[%clk 0:01:49]} 18. Bxe5 {[%clk 0:01:16]}  Bd6 {[%clk 0:01:48]} 19. Bxf6 {[%clk 0:01:10]}  Qxf6 {[%clk 0:01:47]} 20. Qxf6 {[%clk 0:01:08]}  gxf6 {[%clk 0:01:48]} 21. d5 {[%clk 0:01:08]}  Be5 {[%clk 0:01:46]} 22. Rac1 {[%clk 0:00:51]}  b5 {[%clk 0:01:41]} 23. dxe6 {[%clk 0:00:47]}  fxe6 {[%clk 0:01:41]} 24. b3 {[%clk 0:00:48]}  f5 {[%clk 0:01:34]} 25. Rfe1 {[%clk 0:00:41]}  Bxc3 {[%clk 0:01:31]} 26. Rxc3 {[%clk 0:00:41]}  Kf7 {[%clk 0:01:29]} 27. Rc7+ {[%clk 0:00:40]}  Kf6 {[%clk 0:01:25]} 28. Rc6 {[%clk 0:00:41]}  Rfe8 {[%clk 0:01:23]} 29. Rxa6 {[%clk 0:00:41]}  b4 {[%clk 0:01:20]} 30. f4 {[%clk 0:00:35]}  h5 {[%clk 0:01:17]} 31. Rd1 {[%clk 0:00:27]}  Rbc8 {[%clk 0:01:15]} 32. Rd2 {[%clk 0:00:25]}  Red8 {[%clk 0:01:08]} 33. Rxd8 {[%clk 0:00:23]}  Rxd8 {[%clk 0:01:08]} 34. Rc6 {[%clk 0:00:20]}  Rd4 {[%clk 0:00:45]} 35. Rc4 {[%clk 0:00:20]}  Rxc4 {[%clk 0:00:37]} 36. bxc4 {[%clk 0:00:20]}  e5 {[%clk 0:00:38]} 37. Kf2 {[%clk 0:00:19]}  e4 {[%clk 0:00:29]} 38. g3 {[%clk 0:00:16]}  Ke6 {[%clk 0:00:27]} 39. Ke3 {[%clk 0:00:17]}  Kd6 {[%clk 0:00:26]} 40. g4 {[%clk 0:00:18]}  fxg4 {[%clk 0:00:25]} 41. hxg4 {[%clk 0:00:18]}  hxg4 {[%clk 0:00:20]} 42. Kxe4 {[%clk 0:00:18]}  Kc5 {[%clk 0:00:20]} 43. f5 {[%clk 0:00:18]}  g3 {[%clk 0:00:21]} 44. Kf3 {[%clk 0:00:18]}  Kxc4 {[%clk 0:00:21]} 45. f6 {[%clk 0:00:18]}  Kc3 {[%clk 0:00:22]} 46. f7 {[%clk 0:00:19]}  Kb2 {[%clk 0:00:22]} 47. f8=Q {[%clk 0:00:19]}  Kxa2 {[%clk 0:00:23]} 48. Qxb4 {[%clk 0:00:19]}  Ka1 {[%clk 0:00:23]} 49. Kxg3 {[%clk 0:00:19]}  Ka2 {[%clk 0:00:24]} 50. Kf2 {[%clk 0:00:20]}  Ka1 {[%clk 0:00:25]} 51. Ke2 {[%clk 0:00:21]}  Ka2 {[%clk 0:00:25]} 52. Kd2 {[%clk 0:00:22]}  Ka1 {[%clk 0:00:26]} 53. Kc2 {[%clk 0:00:22]}  Ka2 {[%clk 0:00:27]} 54. Qb2# {[%clk 0:00:22]} 1-0


[Site "https://www.chess.com"]

[Event "Titled Tuesday Blitz August 31 2021"]
[White "Kretov, Evgenij"]
[Black "Shubenkova, Veronika"]
[WhiteFideId "4167821"]
[BlackFideId "44124040"]
[WhiteElo "2400"]
[BlackElo "1882"]
[Result "1-0"]
[Round "10"]
[TimeControl "180+1"]
[Date "2021.08.31"]
[WhiteClock "0:01:21"]
[BlackClock "0:01:39"]

1. d4 {[%clk 0:02:50]}  d5 {[%clk 0:02:59]} 2. c4 {[%clk 0:02:49]}  e6 {[%clk 0:02:59]} 3. Nc3 {[%clk 0:02:46]}  Nf6 {[%clk 0:02:59]} 4. cxd5 {[%clk 0:02:46]}  exd5 {[%clk 0:02:59]} 5. Bg5 {[%clk 0:02:46]}  Be7 {[%clk 0:02:59]} 6. Nf3 {[%clk 0:02:47]}  c6 {[%clk 0:02:59]} 7. e3 {[%clk 0:02:47]}  O-O {[%clk 0:03:00]} 8. Bd3 {[%clk 0:02:47]}  Nbd7 {[%clk 0:03:01]} 9. Qc2 {[%clk 0:02:48]}  Re8 {[%clk 0:03:01]} 10. O-O {[%clk 0:02:48]}  Nf8 {[%clk 0:03:02]} 11. Rab1 {[%clk 0:02:48]}  Bg4 {[%clk 0:03:01]} 12. Ne5 {[%clk 0:02:48]}  Be6 {[%clk 0:03:01]} 13. b4 {[%clk 0:02:49]}  Rc8 {[%clk 0:03:01]} 14. b5 {[%clk 0:02:43]}  h6 {[%clk 0:02:54]} 15. Bh4 {[%clk 0:02:42]}  N6d7 {[%clk 0:02:54]} 16. Bxe7 {[%clk 0:02:41]}  Qxe7 {[%clk 0:02:54]} 17. bxc6 {[%clk 0:02:41]}  bxc6 {[%clk 0:02:54]} 18. Nxd7 {[%clk 0:02:38]}  Qxd7 {[%clk 0:02:53]} 19. Na4 {[%clk 0:02:37]}  Qe7 {[%clk 0:02:45]} 20. Nc5 {[%clk 0:02:37]}  Rb8 {[%clk 0:02:43]} 21. Qa4 {[%clk 0:02:35]}  Qd6 {[%clk 0:02:36]} 22. Rxb8 {[%clk 0:02:26]}  Rxb8 {[%clk 0:02:34]} 23. Qxa7 {[%clk 0:02:25]}  Rb2 {[%clk 0:02:33]} 24. a4 {[%clk 0:02:24]}  Bg4 {[%clk 0:02:31]} 25. a5 {[%clk 0:02:22]}  h5 {[%clk 0:02:30]} 26. a6 {[%clk 0:02:17]}  h4 {[%clk 0:02:30]} 27. h3 {[%clk 0:02:11]}  Bxh3 {[%clk 0:02:23]} 28. gxh3 {[%clk 0:02:12]}  Rd2 {[%clk 0:02:16]} 29. Bf5 {[%clk 0:02:05]}  g6 {[%clk 0:02:13]} 30. Bc8 {[%clk 0:02:02]}  Nh7 {[%clk 0:02:11]} 31. Qd7 {[%clk 0:02:00]}  Qf6 {[%clk 0:02:06]} 32. a7 {[%clk 0:01:58]}  Ng5 {[%clk 0:02:06]} 33. a8=Q {[%clk 0:01:49]}  Nf3+ {[%clk 0:02:06]} 34. Kh1 {[%clk 0:01:47]}  Ne1 {[%clk 0:01:54]} 35. Ba6+ {[%clk 0:01:33]}  Kh7 {[%clk 0:01:50]} 36. Qg4 {[%clk 0:01:21]}  Rxf2 {[%clk 0:01:39]} 37. Rxe1 {[%clk 0:01:21]} 1-0


[Site "https://www.chess.com"]